bitfinex/quotes_SOLUSD_20220113
["timestamp","ask_amount","ask_price","bid_price","bid_amount"]
[1642096090437,16.738,149.91,149.82,7.6437741]
[1642096090635,16.738,149.91,149.78,1.64999521]
[1642096090835,23.3619,149.9,149.78,1.64999521]
[1642096091039,29.3619,149.9,149.78,1.89999521]
[1642096091235,7.82,149.93,149.78,11.91199521]
[1642096091434,7.82,149.95,149.79,56.99239521]
[1642096091635,7.82,149.95,149.8,65.33]
[1642096091834,13.82,149.95,149.8,74.79999521]
[1642096092034,7.82,149.95,149.81,15.80813496]
[1642096092234,25.22163138,149.98,149.82,65.33]
[1642096092434,2.668,149.97,149.82,66.97999521]
[1642096092636,2.668,149.97,149.87,10.0036]
[1642096092836,8.668,149.97,149.87,10.0036]
[1642096093041,65.33,149.95,149.87,1.64999521]
[1642096093336,0.07,149.93,149.83,7.64624642]
[1642096093536,65.33,149.91,149.83,7.64624642]
[1642096093737,10.0123,149.87,149.83,7.64624642]
[1642096093936,2.669,149.86,149.83,7.64624642]
[1642096094139,19.68286036,149.87,149.83,7.64624642]
[1642096094338,19.68286036,149.87,149.76,16.4780396]
[1642096094551,2.669,149.86,149.76,16.4780396]
[1642096094951,18.9317,149.86,149.76,22.7280396]
[1642096095553,12.9317,149.86,149.76,22.7280396]
[1642096095755,2.919,149.86,149.76,22.7280396]
[1642096095952,18.9307,149.86,149.76,32.7398396]
[1642096096154,7.82,149.85,149.76,22.7280396]
[1642096096451,2.67,149.84,149.76,0.25]
[1642096096652,2.92,149.84,149.74,0.07962902]
[1642096096857,32.7012,149.84,149.7,433.4512062]
[1642096097052,7.82,149.83,149.7,433.4512062]
[1642096097256,18.03089662,149.82,149.7,433.4512062]
[1642096097553,10.0167,149.79,149.69,10.016]
[1642096097754,16.25884893,149.78,149.68,88.46143263]
[1642096097953,22.25884893,149.78,149.68,88.46143263]
[1642096098156,6.0,149.78,149.71,7.64978545]
[1642096098854,8.67,149.8,149.71,7.14978545]
[1642096099054,8.92,149.8,149.71,10.0904029]
[1642096099254,8.67,149.8,149.71,10.3404029]
[1642096099454,6.0,149.8,149.71,16.3404029]
[1642096099655,6.0,149.8,149.71,26.3554029]
[1642096099957,10.49,149.85,149.71,26.3554029]
[1642096100355,29.7812,149.84,149.71,26.3554029]
[1642096100557,6.0,149.84,149.71,34.4354029]
[1642096100761,32.2123,149.89,149.72,1.64999521]
[1642096100956,32.2123,149.89,149.79,10.0063]
[1642096101158,2.669,149.88,149.79,10.0063]
[1642096101557,25.36668519,149.88,149.77,12.83213607]
[1642096102058,31.36668519,149.88,149.78,10.01]
[1642096102456,31.61668519,149.88,149.78,10.26]
[1642096102658,25.61668519,149.88,149.78,10.26]
[1642096103157,25.61668519,149.88,149.73,47.0508]
[1642096103360,31.4322,149.87,149.68,17.6188]
[1642096103657,2.67,149.86,149.69,6.0]
[1642096103856,2.67,149.86,149.68,9.7988]
[1642096103857,10.0151,149.81,149.68,9.7988]
[1642096104058,2.67,149.8,149.68,9.7988]
[1642096104256,16.16985117,149.79,149.68,9.7988]
[1642096104458,2.67,149.78,149.67,50.64509608]
[1642096104660,9.713,149.78,149.67,25.65589608]
[1642096104858,15.963,149.78,149.67,19.8828]
[1642096105059,33.8005,149.78,149.67,9.8653]
[1642096105863,97.7,149.7,149.62,430.2049289]
[1642096106060,10.0268,149.66,149.6,2.0468]
[1642096106260,10.493,149.65,149.6,2.0468]
[1642096106460,13.82,149.65,149.6,2.0468]
[1642096106661,13.82,149.65,149.6,1.0468]
[1642096106863,7.82,149.65,149.6,1.0468]
[1642096107265,6.332,149.7,149.6,1.0468]
[1642096107266,7.82,149.69,149.6,1.0468]
[1642096107662,7.82,149.72,149.6,7.0468]
[1642096107864,7.82,149.72,149.61,8.13257355]
[1642096108063,7.82,149.76,149.61,8.13257355]
[1642096108264,7.82,149.76,149.61,14.13257355]
[1642096108466,20.5103,149.76,149.61,14.13257355]
[1642096108663,20.5103,149.76,149.61,8.13257355]
[1642096109064,37.5366302,149.76,149.61,8.38257355]
[1642096109263,34.8646302,149.76,149.65,3.82628409]
[1642096109464,37.5346302,149.76,149.65,3.82628409]
[1642096109664,37.7946302,149.76,149.65,3.82628409]
[1642096109864,43.5346302,149.76,149.65,3.82628409]
[1642096110164,43.5346302,149.76,149.64,19.11674607]
[1642096110365,48.5996302,149.76,149.64,19.11674607]
[1642096110565,48.5996302,149.76,149.64,19.37674607]
[1642096110868,10.0219,149.71,149.64,3.82628409]
[1642096111070,16.3809,149.71,149.64,3.82628409]
[1642096111267,22.6409,149.71,149.65,3.82628409]
[1642096111666,16.44827926,149.7,149.65,3.82628409]
[1642096111866,10.024,149.68,149.65,3.82628409]
[1642096112066,17.971,149.68,149.65,3.82628409]
[1642096112268,17.721,149.68,149.63,3.82628409]
[1642096112468,17.971,149.68,149.63,3.82628409]
[1642096112666,17.721,149.68,149.63,3.82628409]
[1642096112867,17.971,149.68,149.63,3.82628409]
[1642096113070,17.971,149.68,149.61,3.82628409]
[1642096113869,13.33052589,149.67,149.61,3.82628409]
[1642096114268,10.0242,149.67,149.61,3.82628409]
[1642096114471,7.82,149.69,149.61,4.07628409]
[1642096114671,13.82,149.69,149.61,3.82628409]
[1642096115269,10.0236,149.68,149.61,3.82628409]
[1642096115471,10.492,149.67,149.61,3.82628409]
[1642096115870,16.492,149.67,149.61,3.82628409]
[1642096116070,15.8040975,149.66,149.61,3.82628409]
[1642096116273,23.6240975,149.66,149.61,3.82628409]
[1642096116471,10.0265,149.64,149.61,3.82628409]
[1642096116674,13.42320115,149.63,149.61,3.82628409]
[1642096117072,13.42320115,149.63,149.61,0.25]
[1642096117272,41.2417,149.68,149.61,0.25]
[1642096117471,10.0253,149.66,149.61,0.25]
[1642096117671,10.0253,149.66,149.59,13.63048409]
[1642096117871,16.0253,149.66,149.59,13.88048409]
[1642096118072,16.0253,149.66,149.6,3.82628409]
[1642096118271,32.95084639,149.66,149.6,3.82628409]
[1642096118676,22.92554639,149.66,149.6,3.82628409]
[1642096118876,10.0265,149.64,149.6,3.82628409]
[1642096119473,16.92554639,149.66,149.6,3.82628409]
[1642096119675,7.82,149.68,149.6,3.82628409]
[1642096119873,10.0246,149.67,149.6,3.82628409]
[1642096120074,7.82,149.68,149.6,3.82628409]
[1642096120274,2.673,149.73,149.61,65.33]
[1642096120475,2.672,149.76,149.61,81.30999521]
[1642096120699,15.51514672,149.77,149.62,7.03437953]
[1642096120875,15.51514672,149.77,149.62,8.68437474]
[1642096121078,15.51514672,149.77,149.63,19.48989521]
[1642096121277,23.33514672,149.77,149.63,19.48989521]
[1642096121479,2.672,149.76,149.64,1.64999521]
[1642096121884,7.82,149.75,149.66,3.82628409]
[1642096122084,26.79496694,149.73,149.66,3.82628409]
[1642096122885,26.79496694,149.73,149.66,2.1609497]
[1642096123084,16.77456694,149.73,149.66,2.4109497]
[1642096123283,16.77456694,149.73,149.66,0.25]
[1642096123883,0.26,149.73,149.66,0.25]
[1642096124088,30.2243,149.76,149.66,0.25]
[1642096124284,24.2243,149.76,149.66,0.25]
[1642096124485,26.8943,149.76,149.66,1.64999521]
[1642096124686,36.9129,149.76,149.66,1.64999521]
[1642096124884,36.9129,149.76,149.66,0.25]
[1642096124885,15.52268076,149.75,149.66,0.25]
[1642096125084,2.67,149.74,149.64,1.64999521]
[1642096125284,2.67,149.74,149.65,0.25]
[1642096125484,3.18,149.74,149.62,26.25929521]
[1642096125685,10.0213,149.72,149.62,1.64999521]
[1642096125886,10.562,149.71,149.57,93.4]
[1642096126088,22.217,149.71,149.55,1.9613]
[1642096126288,33.429,149.65,149.55,12.1183]
[1642096126490,16.73800661,149.64,149.55,10.157]
[1642096126693,26.76560661,149.64,149.55,10.157]
[1642096126888,32.76560661,149.64,149.55,10.157]
[1642096127090,2.673,149.63,149.55,10.157]
[1642096127288,33.4335,149.63,149.55,10.157]
[1642096127889,10.0301,149.59,149.55,10.157]
[1642096128089,18.3671,149.59,149.55,10.157]
[1642096129908,24.3671,149.59,149.51,6.95737426]
[1642096130410,15.65690484,149.58,149.51,16.95217426]
[1642096130610,10.0334,149.55,149.51,16.95217426]
[1642096130810,22.46989672,149.55,149.51,16.95217426]
[1642096132111,10.0316,149.57,149.51,16.95217426]
[1642096132411,59.4467,149.64,149.51,16.95217426]
[1642096132610,10.494,149.69,149.52,9.46999521]
[1642096132817,10.494,149.69,149.55,10.0262]
[1642096133012,16.80612895,149.68,149.56,9.22166662]
[1642096133214,2.673,149.67,149.56,9.22166662]
[1642096133412,12.6982,149.67,149.56,9.73166662]
[1642096133611,20.5182,149.67,149.56,0.25]
[1642096133812,26.7682,149.67,149.56,0.25]
[1642096134614,74.7477,149.67,149.52,16.2784]
[1642096135112,74.7477,149.67,149.52,16.0284]
[1642096135315,74.8877,149.67,149.52,6.0]
[1642096135516,10.0294,149.6,149.51,47.19617426]
[1642096135715,10.0294,149.6,149.51,22.95217426]
[1642096136315,10.0294,149.6,149.51,12.95737426]
[1642096136516,10.0294,149.6,149.51,13.20737426]
[1642096136816,10.0294,149.6,149.51,12.95737426]
[1642096137020,10.0284,149.62,149.51,12.95737426]
[1642096137416,25.8753,149.65,149.51,78.28737426]
[1642096137623,2.674,149.66,149.51,88.57667426]
[1642096138019,8.674,149.66,149.52,78.21724613]
[1642096138220,2.674,149.66,149.55,33.4145]
[1642096138722,2.673,149.68,149.58,10.0244]
[1642096139122,2.673,149.68,149.59,10.5357894]
[1642096139524,19.44505635,149.68,149.55,6.0]
[1642096139730,19.44505635,149.68,149.59,10.0239]
[1642096139923,19.45505635,149.68,149.59,10.0239]
[1642096140122,19.70505635,149.68,149.59,10.0239]
[1642096140322,2.933,149.68,149.59,10.0239]
[1642096140522,7.82,149.69,149.59,10.2839]
[1642096140727,2.673,149.68,149.59,10.2839]
[1642096140928,2.673,149.68,149.59,10.5339]
[1642096141125,2.673,149.7,149.59,10.5339]
[1642096141324,26.5726,149.71,149.6,17.50109766]
[1642096141526,36.5949,149.71,149.62,10.0223]
[1642096141927,36.8449,149.71,149.62,10.2723]
[1642096142231,36.5949,149.71,149.62,10.2723]
[1642096142628,36.5949,149.71,149.63,5.92193787]
[1642096142826,36.8449,149.71,149.62,10.2723]
[1642096143825,36.5949,149.71,149.6,10.0231]
[1642096144026,42.9149,149.71,149.57,14.50446841]
[1642096144228,42.9149,149.71,149.57,6.0]
[1642096144429,7.82,149.7,149.57,6.0]
[1642096144629,10.025,149.67,149.57,6.0]
[1642096144832,2.673,149.66,149.56,29.0259]
[1642096145028,2.673,149.66,149.57,10.025]
[1642096145233,12.90944408,149.68,149.57,24.37538805]
[1642096145529,20.5154,149.7,149.57,24.88538805]
[1642096145829,7.82,149.7,149.57,24.88538805]
[1642096146029,7.82,149.7,149.57,30.88538805]
[1642096146429,10.493,149.7,149.57,30.88538805]
[1642096146630,20.5154,149.7,149.57,30.63538805]
[1642096146828,20.7654,149.7,149.57,30.63538805]
[1642096147028,21.0254,149.7,149.57,95.96538805]
[1642096147230,20.7754,149.7,149.57,95.96538805]
[1642096147432,20.5154,149.7,149.57,95.96538805]
[1642096147630,8.07,149.7,149.57,95.96538805]
[1642096147833,7.82,149.7,149.57,95.96538805]
[1642096148230,2.673,149.73,149.58,7.82]
[1642096148433,2.672,149.75,149.58,32.24789521]
[1642096148629,34.1082,149.81,149.66,10.0178]
[1642096148831,10.0163,149.79,149.66,10.0178]
[1642096149030,2.67,149.78,149.67,66.97999521]
[1642096149230,14.56462457,149.77,149.67,66.97999521]
[1642096149430,14.56462457,149.77,149.68,15.49671808]
[1642096149835,14.56462457,149.77,149.68,8.15999521]
[1642096150236,14.56462457,149.77,149.71,10.0161]
[1642096150736,14.56462457,149.77,149.71,10.5261]
[1642096150935,2.67,149.8,149.71,10.5261]
[1642096152439,2.67,149.8,149.71,21.10501654]
[1642096152744,60.36264797,149.81,149.71,10.5261]
[1642096154866,59.86264797,149.81,149.71,10.5261]
[1642096155072,2.67,149.8,149.71,10.5261]
[1642096155273,59.86264797,149.81,149.71,10.5261]
[1642096155471,70.12764797,149.81,149.71,10.0161]
[1642096155672,2.67,149.8,149.66,10.053]
[1642096155873,0.07,149.79,149.66,10.053]
[1642096156073,10.49,149.78,149.66,10.053]
[1642096156274,0.07,149.77,149.66,10.053]
[1642096156475,2.67,149.76,149.66,10.053]
[1642096156876,2.92,149.76,149.66,10.053]
[1642096157076,2.67,149.76,149.66,20.072]
[1642096157274,13.07578858,149.77,149.67,1.64999521]
[1642096157478,15.74578858,149.77,149.67,1.90999521]
[1642096157680,6.0,149.78,149.68,6.94434714]
[1642096157881,2.67,149.79,149.68,8.59434235]
[1642096158076,2.67,149.79,149.68,9.10434235]
[1642096158280,2.67,149.8,149.68,9.10434235]
[1642096158580,8.67,149.8,149.69,11.66669521]
[1642096158779,13.6480098,149.79,149.69,10.0167]
[1642096158978,2.67,149.78,149.69,10.5267]
[1642096159177,2.92,149.78,149.66,19.52299521]
[1642096159378,2.67,149.78,149.68,0.25]
[1642096159579,13.6480098,149.79,149.68,0.25]
[1642096159778,2.67,149.78,149.72,10.015]
[1642096159982,2.67,149.78,149.72,0.25]
[1642096160580,13.6480098,149.79,149.72,0.25]
[1642096160783,2.67,149.78,149.72,0.25]
[1642096160981,2.67,149.78,149.7,10.5258]
[1642096161382,13.6480098,149.79,149.7,10.5258]
[1642096161583,13.6480098,149.79,149.7,0.51]
[1642096161983,13.6480098,149.79,149.7,10.2659]
[1642096162182,13.6480098,149.79,149.7,10.0159]
[1642096162384,13.6480098,149.79,149.7,20.78936819]
[1642096163083,13.6480098,149.79,149.7,10.5259]
[1642096163483,53.3523,149.81,149.7,75.8559]
[1642096163683,8.67,149.8,149.7,75.8559]
[1642096163988,8.92,149.8,149.7,12.17589521]
[1642096164185,8.92,149.8,149.7,10.5259]
[1642096164384,6.25,149.8,149.7,10.5259]
[1642096164585,16.52769652,149.79,149.7,10.5259]
[1642096164984,19.85769652,149.79,149.7,10.5259]
[1642096165184,22.52769652,149.79,149.7,10.5259]
[1642096165387,2.67,149.8,149.7,10.5259]
[1642096165586,6.0,149.8,149.7,10.5259]
[1642096165987,6.0,149.8,149.7,75.8559]
[1642096166186,8.67,149.81,149.7,75.8559]
[1642096166385,17.52629273,149.81,149.7,75.8559]
[1642096166586,23.52629273,149.81,149.7,75.8559]
[1642096166986,23.52629273,149.81,149.71,73.75591401]
[1642096167187,23.52629273,149.81,149.73,10.0138]
[1642096167590,23.27629273,149.81,149.73,10.5238]
[1642096167789,23.27629273,149.81,149.73,16.5238]
[1642096168388,17.27629273,149.81,149.73,16.5238]
[1642096168589,17.27629273,149.81,149.73,0.51]
[1642096168790,27.29129273,149.81,149.71,10.5246]
[1642096168990,27.54129273,149.81,149.71,10.5246]
[1642096169693,17.52629273,149.81,149.71,90.73162208]
[1642096169893,14.60629273,149.81,149.71,90.73162208]
[1642096170292,12.6843,149.82,149.71,90.73162208]
[1642096170496,10.0143,149.82,149.71,90.73162208]
[1642096171194,10.2643,149.82,149.71,90.73162208]
[1642096171394,27.79947607,149.82,149.71,90.73162208]
[1642096171795,27.79947607,149.82,149.71,0.25]
[1642096171796,2.67,149.81,149.71,0.25]
[1642096171996,10.0164,149.79,149.68,7.82]
[1642096172295,10.0164,149.79,149.58,43.76790423]
[1642096172296,10.49,149.78,149.64,7.82]
[1642096172495,15.617,149.78,149.64,23.693]
[1642096172698,12.40575717,149.77,149.64,37.39500067]
[1642096172899,2.67,149.76,149.64,39.04499588]
[1642096173101,33.0163,149.76,149.65,65.33]
[1642096173298,10.0199,149.74,149.65,65.33]
[1642096173498,25.7855126,149.74,149.65,65.84]
[1642096174103,25.7855126,149.74,149.64,11.52299521]
[1642096174304,2.672,149.73,149.62,7.82]
[1642096174507,10.022,149.71,149.62,7.82]
[1642096174708,10.022,149.71,149.6,5.69740261]
[1642096174907,13.35181847,149.7,149.6,5.69740261]
[1642096175108,21.42181847,149.7,149.6,5.69740261]
[1642096175310,27.42181847,149.7,149.6,5.69740261]
[1642096176010,10.0242,149.67,149.6,5.69740261]
[1642096176213,24.9532,149.7,149.6,0.26]
[1642096176410,7.82,149.74,149.6,0.26]
[1642096176610,7.82,149.74,149.62,1.90400313]
[1642096176611,2.672,149.73,149.62,1.90400313]
[1642096177110,8.922,149.73,149.62,2.16400313]
[1642096177310,18.9426,149.73,149.62,2.41400313]
[1642096178111,18.9426,149.73,149.63,1.90400313]
[1642096178509,18.9426,149.73,149.63,2.16400313]
[1642096178710,18.9426,149.73,149.63,0.26]
[1642096179115,18.9426,149.73,149.62,12.18570313]
[1642096179311,18.9426,149.73,149.62,1.90400313]
[1642096179511,26.7626,149.73,149.62,2.15400313]
[1642096179713,26.8326,149.73,149.62,2.15400313]
[1642096179912,65.33,149.72,149.62,2.15400313]
[1642096180112,10.024,149.68,149.62,2.15400313]
[1642096180314,10.024,149.68,149.62,0.25]
[1642096180514,17.34113242,149.67,149.61,2.15400313]
[1642096181146,27.36533242,149.67,149.61,2.15400313]
[1642096181345,27.36533242,149.67,149.61,0.25]
[1642096181544,27.36533242,149.67,149.6,1.90400313]
[1642096181754,17.34113242,149.67,149.6,1.90400313]
[1642096182150,17.34113242,149.67,149.6,2.16400313]
[1642096183051,17.34113242,149.67,149.61,1.90400313]
[1642096183256,10.0234,149.68,149.61,1.90400313]
[1642096183457,60.3502,149.71,149.61,2.41400313]
[1642096183458,10.0225,149.7,149.61,2.41400313]
[1642096183657,26.9371,149.71,149.61,2.41400313]
[1642096183859,23.0058,149.72,149.61,10.23400313]
[1642096184059,2.672,149.76,149.61,9.97999521]
[1642096184259,12.969348,149.75,149.62,15.90597756]
[1642096184484,12.969348,149.75,149.68,10.0176]
[1642096184886,12.969348,149.75,149.68,10.5276]
[1642096185186,15.639348,149.75,149.68,10.2776]
[1642096186499,15.889348,149.75,149.68,10.2776]
[1642096187595,14.889348,149.75,149.68,10.2776]
[1642096188191,24.908248,149.75,149.66,10.0185]
[1642096188393,22.238248,149.75,149.66,10.0185]
[1642096188590,22.238248,149.75,149.66,10.2685]
[1642096189890,2.67,149.74,149.66,10.0185]
[1642096190093,12.9396,149.74,149.65,1.90400313]
[1642096190291,18.9396,149.74,149.65,1.90400313]
[1642096190494,18.9396,149.74,149.65,2.15400313]
[1642096190690,12.9396,149.74,149.65,0.25]
[1642096191092,12.9396,149.74,149.64,1.90400313]
[1642096191492,12.9396,149.74,149.64,2.41400313]
[1642096191698,18.9396,149.74,149.64,2.16400313]
[1642096192299,19.0096,149.74,149.64,2.16400313]
[1642096192500,19.0096,149.74,149.64,0.26]
[1642096192704,19.0096,149.74,149.63,12.18440313]
[1642096192909,28.47959521,149.74,149.63,2.16400313]
[1642096193100,28.47959521,149.74,149.63,1.90400313]
[1642096193299,0.07,149.71,149.58,5.69740261]
[1642096193501,75.3596,149.66,149.58,5.69740261]
[1642096193702,25.51335404,149.65,149.53,2.0077]
[1642096194010,31.76335404,149.65,149.53,11.8666]
[1642096194213,31.76335404,149.65,149.56,5.72308098]
[1642096194614,10.0327,149.59,149.56,5.72308098]
[1642096194814,10.0327,149.59,149.57,3.03219997]
[1642096195014,10.494,149.64,149.57,3.03219997]
[1642096195211,7.82,149.64,149.57,3.03219997]
[1642096195411,17.003,149.64,149.57,3.03219997]
[1642096195612,16.753,149.64,149.57,3.03219997]
[1642096195812,10.0292,149.6,149.57,3.03219997]
[1642096196412,23.3865,149.65,149.57,3.28219997]
[1642096196713,31.2065,149.65,149.57,3.28219997]
[1642096197011,33.6194,149.66,149.57,3.28219997]
[1642096197012,23.5936,149.66,149.57,3.54219997]
[1642096197214,37.57404782,149.66,149.57,13.30729997]
[1642096197412,23.5936,149.66,149.57,13.56729997]
[1642096197815,23.5936,149.66,149.57,3.28219997]
[1642096198011,33.8688,149.66,149.57,3.28219997]
[1642096198817,33.8688,149.66,149.58,12.70037238]
[1642096199011,33.8688,149.66,149.58,13.21037238]
[1642096199213,33.8688,149.66,149.58,12.95037238]
[1642096199512,34.1288,149.66,149.58,12.95037238]
[1642096199812,33.6188,149.66,149.58,13.21037238]
[1642096201814,33.6188,149.66,149.58,0.51]
[1642096202016,33.6188,149.66,149.55,81.866]
[1642096202416,33.6188,149.66,149.55,81.616]
[1642096202617,33.6188,149.66,149.55,16.026]
[1642096202818,18.54282283,149.65,149.53,11.8666]
[1642096203016,10.0295,149.6,149.53,11.8666]
[1642096203516,22.8164,149.64,149.53,11.8666]
[1642096203920,10.0243,149.68,149.54,1.64999521]
[1642096204217,10.0243,149.68,149.54,13.29851766]
[1642096204416,10.0243,149.68,149.54,19.54851766]
[1642096204616,10.0243,149.68,149.55,13.40010616]
[1642096204816,12.6973,149.68,149.57,10.0249]
[1642096205016,7.82,149.67,149.55,11.75011095]
[1642096205218,2.673,149.66,149.55,15.5786334]
[1642096205416,10.0278,149.62,149.55,3.82852245]
[1642096205817,10.2878,149.62,149.55,3.82852245]
[1642096206017,10.0278,149.62,149.55,3.82852245]
[1642096206219,10.0278,149.62,149.54,6.0]
[1642096206417,23.1806752,149.62,149.53,56.49147668]
[1642096206620,10.0278,149.62,149.54,0.26]
[1642096206818,10.0278,149.62,149.54,10.0275]
[1642096207017,10.0271,149.63,149.55,3.82864795]
[1642096207218,36.0999,149.66,149.55,3.82864795]
[1642096207419,42.0999,149.66,149.55,3.82864795]
[1642096207620,2.674,149.66,149.56,9.40395885]
[1642096207818,8.674,149.66,149.56,9.40395885]
[1642096208018,10.0257,149.66,149.56,25.67985885]
[1642096208819,10.0257,149.66,149.56,25.93985885]
[1642096209223,10.0257,149.66,149.57,3.82864795]
[1642096209619,10.2857,149.66,149.57,4.33864795]
[1642096209821,10.2857,149.66,149.57,14.36424795]
[1642096210419,10.0257,149.66,149.57,14.36424795]
[1642096210820,23.8214,149.67,149.57,16.01424316]
[1642096211019,30.9195,149.71,149.57,29.83424316]
[1642096211020,23.0995,149.71,149.57,29.83424316]
[1642096211220,23.0995,149.71,149.57,54.13954316]
[1642096211719,35.9737895,149.71,149.61,10.0219]
[1642096211922,2.672,149.7,149.61,10.0219]
[1642096212122,12.6944,149.7,149.61,16.2719]
[1642096212321,12.9544,149.7,149.62,1.64999521]
[1642096212522,12.9544,149.7,149.62,7.89999521]
[1642096212723,10.2824,149.7,149.62,17.30395406]
[1642096212923,2.932,149.7,149.63,1.64999521]
[1642096213123,2.672,149.7,149.63,1.64999521]
[1642096213324,2.932,149.7,149.63,1.89999521]
[1642096213523,0.26,149.7,149.63,1.89999521]
[1642096213724,23.0995,149.71,149.64,1.64999521]
[1642096213924,23.0995,149.71,149.65,12.71214117]
[1642096214125,26.8815,149.73,149.65,12.71214117]
[1642096214324,2.672,149.75,149.65,14.61213638]
[1642096214525,10.0203,149.74,149.65,14.61213638]
[1642096215126,2.672,149.75,149.65,14.61213638]
[1642096215524,2.672,149.75,149.65,24.89123638]
[1642096215724,12.6911,149.75,149.65,14.36213638]
[1642096215925,12.6911,149.75,149.65,12.71214117]
[1642096216124,89.0,149.74,149.53,65.33]
[1642096216326,50.5333,149.73,149.61,1.64999521]
[1642096216527,89.0,149.71,149.5,51.11527535]
[1642096216725,37.3945,149.7,149.54,1.64999521]
[1642096216924,62.0,149.68,149.49,125.39162671]
[1642096217126,78.11838131,149.68,149.5,17.63743338]
[1642096217324,78.36838131,149.68,149.54,7.65571195]
[1642096217529,23.3025,149.67,149.54,7.65571195]
[1642096217724,2.673,149.66,149.54,7.65571195]
[1642096217926,15.85722788,149.65,149.54,7.65571195]
[1642096218126,22.7718,149.68,149.54,7.82]
[1642096218364,22.7718,149.68,149.54,13.82]
[1642096218563,22.7718,149.68,149.54,79.66]
[1642096219164,14.31556161,149.67,149.54,79.66]
[1642096219564,14.31556161,149.67,149.55,3.82838181]
[1642096219767,14.31556161,149.67,149.55,11.64838181]
[1642096219965,11.81556161,149.67,149.57,65.33]
[1642096220168,11.81556161,149.67,149.57,73.15]
[1642096220365,11.81556161,149.67,149.57,8.33]
[1642096220567,17.81556161,149.67,149.58,65.33]
[1642096220768,11.81556161,149.67,149.58,65.33]
[1642096220969,14.48856161,149.67,149.58,65.59]
[1642096221368,14.48856161,149.67,149.58,0.26]
[1642096221569,11.81556161,149.67,149.56,4.08838181]
[1642096221968,12.06556161,149.67,149.55,13.02006616]
[1642096222372,11.81556161,149.67,149.55,13.02006616]
[1642096222770,14.48856161,149.67,149.56,3.82400214]
[1642096222972,11.81556161,149.67,149.56,3.82400214]
[1642096223973,12.07556161,149.67,149.56,10.08400214]
[1642096224273,12.6963,149.69,149.56,10.33400214]
[1642096224471,18.6963,149.69,149.56,75.66400214]
[1642096224672,8.673,149.69,149.56,75.66400214]
[1642096225073,8.673,149.69,149.57,3.82400214]
[1642096225270,8.673,149.69,149.58,1.19082819]
[1642096225471,12.34093909,149.68,149.58,6.25]
[1642096225671,2.673,149.67,149.58,6.25]
[1642096225872,2.673,149.68,149.58,6.25]
[1642096226075,2.673,149.68,149.58,0.25]
[1642096226472,8.673,149.68,149.58,0.25]
[1642096226674,19.63804014,149.68,149.57,0.25]
[1642096227074,25.63804014,149.68,149.56,16.59745915]
[1642096227278,16.96504014,149.68,149.56,16.59745915]
[1642096227474,2.673,149.67,149.56,16.59745915]
[1642096227873,16.96504014,149.68,149.56,16.59745915]
[1642096228474,17.21504014,149.68,149.56,10.59745915]
[1642096228674,26.7049,149.67,149.57,3.82461615]
[1642096228874,0.26,149.68,149.57,10.07461615]
[1642096229074,33.9797,149.71,149.57,10.07461615]
[1642096229274,33.9797,149.71,149.57,17.89461615]
[1642096229519,39.9797,149.71,149.57,17.89461615]
[1642096229674,39.9797,149.71,149.57,18.15461615]
[1642096229875,37.3067,149.71,149.57,18.15461615]
[1642096230375,24.3773,149.72,149.57,19.80461136]
[1642096230574,2.673,149.74,149.58,65.33]
[1642096230781,2.673,149.74,149.58,101.35451615]
[1642096231075,2.673,149.74,149.59,1.64999521]
[1642096231375,2.673,149.74,149.6,3.8634352]
[1642096231575,2.673,149.74,149.6,10.3734352]
[1642096231775,2.673,149.74,149.6,12.02343041]
[1642096232476,2.933,149.74,149.6,11.76343041]
[1642096232876,2.933,149.74,149.61,3.82461615]
[1642096233076,2.933,149.74,149.61,10.07461615]